[Event "Cracovia Festival-A 2023"]
[Site "Krakow"]
[Date "2023.12.31"]
[Round "5.8"]
[White "Lukasiewicz, Krzysztof"]
[Black "Bogdanov, Egor"]
[Result "0-1"]
[ECO "A45"]
[WhiteElo "2290"]
[BlackElo "2394"]
[Annotator "RC"]
[PlyCount "82"]
[EventDate "2023.12.24"]
[EventType "swiss"]
[EventCountry "POL"]
[SourceTitle "playchess.com"]
[Source "ChessBase"]
[SourceQuality "1"]
[TimeControl "40/5400+30:1800+30"]

1. d4 {[%emt 0:03:28]} Nf6 {[%emt 0:00:02]} 2. Bf4 {[%emt 0:00:05]} g6 {[%emt 0:00:31]} 3. Nc3 {[%emt 0:00:06]} c5 {[%emt 0:00:23]} 4. e3 {[%emt 0:04:49]} Bg7 {[%emt 0:00:27]} 5. Be2 {[%emt 0:02:28]} O-O {[%emt 0:05:41]} 6. h4 {[%emt 0:00:41]} cxd4 {[%emt 0:00:48]} 7. exd4 {[%emt 0:00:05]} h5 {[%emt 0:00:43]} 8. Qd2 {[%emt 0:04:24]} d6 {[%emt 0:00:51]} 9. O-O-O {[%emt 0:01:58]} Nc6 {[%emt 0:01:08]} 10. Nf3 {[%emt 0:07:02]} Bg4 {[%emt 0:03:48]} 11. Bh6 {[%emt 0:04:16]} Rc8 {[%emt 0:04:58]} 12. Bxg7 {[%emt 0:01:29]} Kxg7 {[%emt 0:00:03]} 13. Kb1 {[%emt 0:00:07]} Na5 {[%emt 0:06:36]} 14. Ng5 {[%emt 0:11:16]} Bxe2 {[%emt 0:01:35]} 15. Qxe2 {[%emt 0:02:13]} Rxc3 {[%emt 0:12:58]} 16. bxc3 {[%emt 0:00:11]} Nd5 {[%emt 0:00:12]} 17. Ne4 {[%emt 0:09:00]} f5 {[%emt 0:03:21]} 18. Qb5 {[%emt 0:04:08]} e6 {[%emt 0:01:02]} 19. c4 {[%emt 0:00:12]} a6 {[%emt 0:00:59]} 20. Qb2 {[%emt 0:00:04]} Nxc4 {[%emt 0:03:50]} 21. Qb3 {[%emt 0:08:07]} fxe4 {[%emt 0:10:21]} 22. Qxc4 {[%emt 0:00:13]} Rxf2 {[%emt 0:00:04]} 23. Qb3 {[%emt 0:05:50]} b5 {[%emt 0:03:38]} 24. Rde1 {[%emt 0:04:24]} e3 {[%emt 0:01:57]} 25. Rxe3 {[%emt 0:00:34]} Nxe3 {[%emt 0:00:07]} 26. Qxe3 {[%emt 0:00:02]} Qf6 {[%emt 0:00:25]} 27. Re1 {[%emt 0:02:37]} Rxg2 {[%emt 0:00:46]} 28. Qxe6 {[%emt 0:02:11]} Qxe6 {[%emt 0:00:06]} 29. Rxe6 {[%emt 0:00:04]} Rg4 {[%emt 0:00:06]} 30. Rxd6 {[%emt 0:00:03]} Rxh4 {[%emt 0:00:05]} 31. a4 {[%emt 0:00:02]} Rf4 {[%emt 0:02:22]} 32. a5 {[%emt 0:06:36]} Rf6 {[%emt 0:00:30]} 33. Rd7+ {[%emt 0:02:44]} Rf7 {[%emt 0:00:16]} 34. Rd6 {[%emt 0:01:45]} h4 {[%emt 0:00:19]} 35. Re6 {[%emt 0:00:06]} h3 {[%emt 0:01:22]} 36. Re2 {[%emt 0:00:05]} g5 {[%emt 0:00:12]} 37. Kb2 {[%emt 0:00:09]} Kg6 {[%emt 0:00:30]} 38. Kb3 {[%emt 0:00:46]} g4 {[%emt 0:00:09]} 39. Kb4 {[%emt 0:00:06]} g3 {[%emt 0:00:36]} 40. Re3 {[%emt 0:00:00]} g2 {[%emt 0:00:00]} 41. Rg3+ {[%emt 0:00:11]} Kf6 {[%emt 0:00:35]} 0-1

[Event "Cracovia Festival-A 2023"]
[Site "Krakow"]
[Date "2023.12.31"]
[Round "5.9"]
[White "Antolak, Julia"]
[Black "Sieciechowicz, Marcin"]
[Result "1-0"]
[ECO "B90"]
[WhiteElo "2287"]
[BlackElo "2391"]
[Annotator "RC"]
[PlyCount "65"]
[EventDate "2023.12.24"]
[EventType "swiss"]
[EventCountry "POL"]
[SourceTitle "playchess.com"]
[Source "ChessBase"]
[SourceQuality "1"]
[TimeControl "40/5400+30:1800+30"]

1. e4 {[%emt 0:03:49]} c5 {[%emt 0:00:06]} 2. Nf3 {[%emt 0:00:05]} d6 {[%emt 0:00:05]} 3. d4 {[%emt 0:00:04]} cxd4 {[%emt 0:00:03]} 4. Nxd4 {[%emt 0:00:06]} Nf6 {[%emt 0:00:04]} 5. Nc3 {[%emt 0:00:08]} a6 {[%emt 0:00:04]} 6. h3 {[%emt 0:00:30]} e5 {[%emt 0:00:43]} 7. Nde2 {[%emt 0:00:07]} h5 {[%emt 0:01:28]} 8. g3 {[%emt 0:00:15]} Be7 {[%emt 0:00:31]} 9. Bg2 {[%emt 0:00:34]} Nbd7 {[%emt 0:02:26]} 10. Be3 {[%emt 0:03:52]} b5 {[%emt 0:01:23]} 11. Nd5 {[%emt 0:07:07]} Nxd5 {[%emt 0:01:52]} 12. Qxd5 {[%emt 0:00:07]} Rb8 {[%emt 0:00:14]} 13. O-O {[%emt 0:02:36]} Nf6 {[%emt 0:03:40]} 14. Qd2 {[%emt 0:02:45]} Bb7 {[%emt 0:02:37]} 15. Nc3 {[%emt 0:02:07]} b4 {[%emt 0:03:23]} 16. Nd5 {[%emt 0:05:19]} Nxd5 {[%emt 0:00:50]} 17. exd5 {[%emt 0:01:04]} O-O {[%emt 0:01:07]} 18. f4 {[%emt 0:09:11]} exf4 {[%emt 0:09:47]} 19. Rxf4 {[%emt 0:00:22]} a5 {[%emt 0:02:47]} 20. Raf1 {[%emt 0:02:06]} Qd7 {[%emt 0:07:57]} 21. Rf5 {[%emt 0:05:12]} Rbe8 {[%emt 0:13:02]} 22. Bd4 {[%emt 0:05:58]} f6 {[%emt 0:07:07]} 23. Qf4 {[%emt 0:06:31]} g6 {[%emt 0:08:32]} 24. Qh6 {[%emt 0:01:34]} gxf5 {[%emt 0:01:30]} 25. Qg6+ {[%emt 0:00:18]} Kh8 {[%emt 0:00:02]} 26. Rxf5 {[%emt 0:01:27]} Qxf5 {[%emt 0:00:07]} 27. Qxf5 {[%emt 0:00:04]} Bd8 {[%emt 0:04:44]} 28. Be4 {[%emt 0:04:36]} Rf7 {[%emt 0:00:56]} 29. Qxh5+ {[%emt 0:00:56]} Kg8 {[%emt 0:01:05]} 30. Bg6 {[%emt 0:01:58]} Re1+ {[%emt 0:00:10]} 31. Kf2 {[%emt 0:00:03]} Rfe7 {[%emt 0:00:05]} 32. Bd3 {[%emt 0:00:56]} Re8 {[%emt 0:02:22]} 33. Qh7+ {[%emt 0:01:05]} 1-0

[Event "Cracovia Festival-A 2023"]
[Site "Krakow"]
[Date "2023.12.31"]
[Round "5.10"]
[White "Akhvlediani, Irakli"]
[Black "Podolskyi, Mykhailo"]
[Result "0-1"]
[ECO "B40"]
[WhiteElo "2359"]
[BlackElo "2177"]
[Annotator "RC"]
[PlyCount "84"]
[EventDate "2023.12.24"]
[EventType "swiss"]
[EventCountry "POL"]
[SourceTitle "playchess.com"]
[Source "ChessBase"]
[SourceQuality "1"]
[TimeControl "40/5400+30:1800+30"]

1. e4 {[%emt 0:00:40]} c5 {[%emt 0:09:01]} 2. Nf3 {[%emt 0:00:09]} e6 {[%emt 0:00:46]} 3. g3 {[%emt 0:00:45]} Nf6 {[%emt 0:08:32]} 4. e5 {[%emt 0:01:52]} Nd5 {[%emt 0:01:58]} 5. Bg2 {[%emt 0:00:15]} Nc6 {[%emt 0:01:56]} 6. O-O {[%emt 0:04:53]} Be7 {[%emt 0:10:47]} 7. Re1 {[%emt 0:12:05]} f6 {[%emt 0:08:33]} 8. d4 {[%emt 0:16:26]} cxd4 {[%emt 0:03:43]} 9. Nxd4 {[%emt 0:01:51]} fxe5 {[%emt 0:06:26]} 10. Nxc6 {[%emt 0:29:40]} bxc6 {[%emt 0:04:44]} 11. Qh5+ {[%emt 0:02:36]} g6 {[%emt 0:01:07]} 12. Qxe5 {[%emt 0:00:15]} O-O {[%emt 0:00:19]} 13. Nd2 {[%emt 0:00:40]} Qb6 {[%emt 0:05:10]} 14. Nf3 {[%emt 0:04:11]} Ba6 {[%emt 0:01:48]} 15. Bh6 {[%emt 0:04:42]} Rf7 {[%emt 0:01:42]} 16. c4 {[%emt 0:01:38]} Bxc4 {[%emt 0:15:01]} 17. Qe4 {[%emt 0:00:04]} Bb5 {[%emt 0:02:23]} 18. Ne5 {[%emt 0:07:52]} Rxf2 {[%emt 0:01:03]} 19. Kh1 {[%emt 0:00:04]} Nf6 {[%emt 0:00:55]} 20. Nxd7 {[%emt 0:01:44]} Nxe4 {[%emt 0:00:17]} 21. Nxb6 {[%emt 0:00:02]} axb6 {[%emt 0:00:15]} 22. Rxe4 {[%emt 0:00:58]} Rxb2 {[%emt 0:02:25]} 23. Bh3 {[%emt 0:00:52]} e5 {[%emt 0:07:51]} 24. Be6+ {[%emt 0:04:46]} Kh8 {[%emt 0:00:07]} 25. Rae1 {[%emt 0:01:50]} Bf6 {[%emt 0:01:10]} 26. Bc1 {[%emt 0:01:00]} Rb1 {[%emt 0:01:56]} 27. Bh6 {[%emt 0:01:32]} Bd3 {[%emt 0:01:15]} 28. R4e2 {[%emt 0:00:23]} Rxe1+ {[%emt 0:01:04]} 29. Rxe1 {[%emt 0:00:02]} e4 {[%emt 0:00:35]} 30. Be3 {[%emt 0:00:07]} c5 {[%emt 0:00:15]} 31. Kg2 {[%emt 0:01:03]} c4 {[%emt 0:00:37]} 32. Kh3 {[%emt 0:00:51]} Rxa2 {[%emt 0:00:19]} 33. Bd5 {[%emt 0:00:01]} b5 {[%emt 0:01:41]} 34. Bc5 {[%emt 0:00:04]} Ra1 {[%emt 0:01:15]} 35. Be7 {[%emt 0:01:33]} Bg7 {[%emt 0:00:14]} 36. Rxa1 {[%emt 0:00:30]} Bxa1 {[%emt 0:00:03]} 37. Bc6 {[%emt 0:00:03]} e3 {[%emt 0:01:07]} 38. Kg2 {[%emt 0:00:58]} e2 {[%emt 0:00:31]} 39. Bb4 {[%emt 0:00:04]} c3 {[%emt 0:00:10]} 40. Kf2 {[%emt 0:00:00]} c2 {[%emt 0:00:00]} 41. Bd2 {[%emt 0:00:24]} Bd4+ {[%emt 0:00:17]} 42. Ke1 {[%emt 0:00:17]} Bb2 {[%emt 0:00:19]} 0-1

[Event "Cracovia Festival-A 2023"]
[Site "Krakow"]
[Date "2023.12.31"]
[Round "5.11"]
[White "Baumegger, Siegfried"]
[Black "Cieslak, Patryk"]
[Result "1/2-1/2"]
[ECO "A14"]
[WhiteElo "2388"]
[BlackElo "2284"]
[Annotator "RC"]
[PlyCount "44"]
[EventDate "2023.12.24"]
[EventType "swiss"]
[EventCountry "POL"]
[SourceTitle "playchess.com"]
[Source "ChessBase"]
[SourceQuality "1"]
[TimeControl "40/5400+30:1800+30"]

1. Nf3 {[%emt 0:01:39]} Nf6 {[%emt 0:00:02]} 2. c4 {[%emt 0:00:23]} e6 {[%emt 0:00:07]} 3. g3 {[%emt 0:02:32]} d5 {[%emt 0:00:03]} 4. Bg2 {[%emt 0:01:36]} Be7 {[%emt 0:00:52]} 5. O-O {[%emt 0:00:43]} O-O {[%emt 0:00:04]} 6. d4 {[%emt 0:01:06]} dxc4 {[%emt 0:00:07]} 7. Qc2 {[%emt 0:00:37]} a6 {[%emt 0:00:04]} 8. a4 {[%emt 0:01:27]} Bd7 {[%emt 0:00:06]} 9. Rd1 {[%emt 0:01:43]} Bc6 {[%emt 0:00:11]} 10. Bg5 {[%emt 0:00:23]} b5 {[%emt 0:06:22]} 11. Bxf6 {[%emt 0:00:15]} Bxf6 {[%emt 0:00:07]} 12. Nc3 {[%emt 0:00:06]} Qe8 {[%emt 0:01:05]} 13. h4 {[%emt 0:00:42]} g6 {[%emt 0:11:26]} 14. e4 {[%emt 0:02:32]} Bb7 {[%emt 0:12:31]} 15. h5 {[%emt 0:30:34]} Bg7 {[%emt 0:18:29]} 16. d5 {[%emt 0:07:01]} c6 {[%emt 0:07:10]} 17. axb5 {[%emt 0:09:46]} cxb5 {[%emt 0:02:01]} 18. hxg6 {[%emt 0:01:12]} hxg6 {[%emt 0:00:54]} 19. e5 {[%emt 0:11:39]} Bxd5 {[%emt 0:05:50]} 20. Nxd5 {[%emt 0:03:21]} exd5 {[%emt 0:01:33]} 21. Rxd5 {[%emt 0:02:00]} Nc6 {[%emt 0:01:24]} 22. Qe4 {[%emt 0:01:46]} Qe7 {[%emt 0:03:44]} 1/2-1/2

[Event "Cracovia Festival-A 2023"]
[Site "Krakow"]
[Date "2023.12.31"]
[Round "5.12"]
[White "Ernst, Robert"]
[Black "Kozak, Antoni"]
[Result "1/2-1/2"]
[ECO "D35"]
[WhiteElo "2271"]
[BlackElo "2442"]
[Annotator "RC"]
[PlyCount "171"]
[EventDate "2023.12.24"]
[EventType "swiss"]
[EventCountry "POL"]
[SourceTitle "playchess.com"]
[Source "ChessBase"]
[SourceQuality "1"]
[TimeControl "40/5400+30:1800+30"]

1. d4 {[%emt 0:00:03]} Nf6 {[%emt 0:00:04]} 2. c4 {[%emt 0:00:10]} e6 {[%emt 0:00:03]} 3. Nc3 {[%emt 0:00:10]} d5 {[%emt 0:00:07]} 4. cxd5 {[%emt 0:00:08]} exd5 {[%emt 0:00:03]} 5. Bg5 {[%emt 0:00:12]} c6 {[%emt 0:00:05]} 6. e3 {[%emt 0:00:08]} Be6 {[%emt 0:00:04]} 7. Bd3 {[%emt 0:00:12]} Nbd7 {[%emt 0:00:04]} 8. f3 {[%emt 0:00:11]} Be7 {[%emt 0:05:07]} 9. Nge2 {[%emt 0:00:49]} Nh5 {[%emt 0:02:58]} 10. Bxe7 {[%emt 0:00:17]} Qxe7 {[%emt 0:00:04]} 11. g4 {[%emt 0:13:05]} Qh4+ {[%emt 0:05:20]} 12. Kd2 {[%emt 0:06:21]} Nhf6 {[%emt 0:00:07]} 13. Qe1 {[%emt 0:02:17]} Qxe1+ {[%emt 0:00:20]} 14. Raxe1 {[%emt 0:00:09]} O-O-O {[%emt 0:04:07]} 15. h4 {[%emt 0:04:02]} Ne8 {[%emt 0:02:57]} 16. Nf4 {[%emt 0:02:39]} Nd6 {[%emt 0:00:32]} 17. Nce2 {[%emt 0:07:31]} a5 {[%emt 0:05:18]} 18. b3 {[%emt 0:05:50]} Kc7 {[%emt 0:03:08]} 19. a4 {[%emt 0:05:53]} Rde8 {[%emt 0:03:44]} 20. Nh5 {[%emt 0:04:46]} Reg8 {[%emt 0:01:53]} 21. Nef4 {[%emt 0:03:00]} g6 {[%emt 0:15:44]} 22. Ng3 {[%emt 0:00:13]} Re8 {[%emt 0:00:50]} 23. Re2 {[%emt 0:08:52]} h6 {[%emt 0:06:21]} 24. Rf2 {[%emt 0:07:47]} Nf6 {[%emt 0:02:03]} 25. g5 {[%emt 0:04:05]} hxg5 {[%emt 0:00:21]} 26. hxg5 {[%emt 0:00:02]} Rxh1 {[%emt 0:00:08]} 27. Nxh1 {[%emt 0:00:38]} Nh7 {[%emt 0:00:25]} 28. Nxe6+ {[%emt 0:00:41]} Rxe6 {[%emt 0:00:04]} 29. f4 {[%emt 0:00:16]} f5 {[%emt 0:02:16]} 30. Rh2 {[%emt 0:01:42]} Re7 {[%emt 0:00:11]} 31. Nf2 {[%emt 0:02:31]} b6 {[%emt 0:02:35]} 32. Nd1 {[%emt 0:03:25]} Kd7 {[%emt 0:01:18]} 33. Nc3 {[%emt 0:01:54]} Ke8 {[%emt 0:01:39]} 34. Be2 {[%emt 0:00:45]} Nf8 {[%emt 0:01:04]} 35. Bf3 {[%emt 0:00:43]} Kf7 {[%emt 0:00:10]} 36. Nd1 {[%emt 0:01:31]} Kg7 {[%emt 0:00:54]} 37. Nf2 {[%emt 0:01:09]} Nd7 {[%emt 0:01:28]} 38. Rh1 {[%emt 0:00:52]} Nb8 {[%emt 0:00:17]} 39. Nd3 {[%emt 0:02:10]} Nf7 {[%emt 0:03:05]} 40. Rc1 {[%emt 0:00:00]} Re6 {[%emt 0:00:00]} 41. Bg2 {[%emt 0:05:21]} Na6 {[%emt 0:01:10]} 42. Bf3 {[%emt 0:00:41]} Nd8 {[%emt 0:05:34]} 43. Ne5 {[%emt 0:07:10]} Rd6 {[%emt 0:02:24]} 44. Rh1 {[%emt 0:02:08]} Ne6 {[%emt 0:01:42]} 45. Rh6 {[%emt 0:05:05]} Nf8 {[%emt 0:00:20]} 46. Bg2 {[%emt 0:11:11]} Nb4 {[%emt 0:01:30]} 47. Bh3 {[%emt 0:01:26]} Re6 {[%emt 0:02:01]} 48. Bg2 {[%emt 0:02:51]} Rd6 {[%emt 0:00:19]} 49. Bh3 {[%emt 0:00:12]} Re6 {[%emt 0:00:08]} 50. Bg2 {[%emt 0:00:10]} c5 {[%emt 0:01:28]} 51. Nd3 {[%emt 0:01:39]} Nxd3 {[%emt 0:00:23]} 52. Kxd3 {[%emt 0:00:02]} Rd6 {[%emt 0:00:06]} 53. Rh4 {[%emt 0:01:43]} Ne6 {[%emt 0:00:16]} 54. Bf3 {[%emt 0:00:12]} Nc7 {[%emt 0:00:08]} 55. Rh1 {[%emt 0:00:43]} Rd8 {[%emt 0:00:50]} 56. Bg2 {[%emt 0:00:59]} Ne6 {[%emt 0:00:26]} 57. Rh4 {[%emt 0:00:06]} Rd7 {[%emt 0:00:24]} 58. Bf3 {[%emt 0:00:34]} Nc7 {[%emt 0:00:11]} 59. Rh1 {[%emt 0:00:14]} Rd8 {[%emt 0:00:31]} 60. Bg2 {[%emt 0:00:52]} Na6 {[%emt 0:00:13]} 61. Rc1 {[%emt 0:00:42]} Nb4+ {[%emt 0:00:08]} 62. Kd2 {[%emt 0:00:02]} Rh8 {[%emt 0:00:22]} 63. Rh1 {[%emt 0:00:09]} Rc8 {[%emt 0:00:29]} 64. Rc1 {[%emt 0:00:21]} Kf7 {[%emt 0:00:08]} 65. Bf3 {[%emt 0:00:57]} Ke6 {[%emt 0:00:23]} 66. Bg2 {[%emt 0:00:10]} Kd6 {[%emt 0:00:37]} 67. dxc5+ {[%emt 0:01:37]} bxc5 {[%emt 0:00:43]} 68. Rh1 {[%emt 0:00:06]} c4 {[%emt 0:02:52]} 69. bxc4 {[%emt 0:00:05]} dxc4 {[%emt 0:00:10]} 70. Kc3 {[%emt 0:00:07]} Kc5 {[%emt 0:00:51]} 71. Rh7 {[%emt 0:02:16]} Na2+ {[%emt 0:07:34]} 72. Kb2 {[%emt 0:00:01]} Nb4 {[%emt 0:00:29]} 73. Kc3 {[%emt 0:00:40]} Re8 {[%emt 0:02:02]} 74. e4 {[%emt 0:00:31]} Na2+ {[%emt 0:05:58]} 75. Kb2 {[%emt 0:00:20]} Rd8 {[%emt 0:00:12]} 76. Rc7+ {[%emt 0:03:19]} Kb6 {[%emt 0:05:55]} 77. Rxc4 {[%emt 0:00:03]} Nb4 {[%emt 0:00:03]} 78. exf5 {[%emt 0:03:43]} Rd2+ {[%emt 0:00:23]} 79. Kc1 {[%emt 0:02:08]} Rxg2 {[%emt 0:00:37]} 80. fxg6 {[%emt 0:00:01]} Nd3+ {[%emt 0:00:12]} 81. Kb1 {[%emt 0:00:10]} Nxf4 {[%emt 0:00:09]} 82. Rxf4 {[%emt 0:00:32]} Rxg5 {[%emt 0:00:03]} 83. Rf6+ {[%emt 0:00:31]} Kc5 {[%emt 0:00:03]} 84. Kb2 {[%emt 0:00:38]} Kb4 {[%emt 0:00:07]} 85. Rf4+ {[%emt 0:00:07]} Kc5 {[%emt 0:00:02]} 86. Rf6 {[%emt 0:00:07]} 1/2-1/2

[Event "Cracovia Festival-A 2023"]
[Site "Krakow"]
[Date "2023.12.31"]
[Round "5.13"]
[White "Ashwath, R.."]
[Black "Golubka, Petro"]
[Result "1/2-1/2"]
[ECO "A04"]
[WhiteElo "2284"]
[BlackElo "2440"]
[Annotator "RC"]
[PlyCount "46"]
[EventDate "2023.12.24"]
[EventType "swiss"]
[EventCountry "POL"]
[SourceTitle "playchess.com"]
[Source "ChessBase"]
[SourceQuality "1"]
[TimeControl "40/5400+30:1800+30"]

1. Nf3 {[%emt 0:00:04]} e6 {[%emt 0:27:29]} 2. g3 {[%emt 0:01:02]} g5 {[%emt 0:00:05]} 3. d4 {[%emt 0:00:16]} g4 {[%emt 0:00:26]} 4. Nh4 {[%emt 0:00:18]} Be7 {[%emt 0:00:35]} 5. Ng2 {[%emt 0:03:38]} c5 {[%emt 0:00:28]} 6. Ne3 {[%emt 0:02:10]} h5 {[%emt 0:00:33]} 7. d5 {[%emt 0:00:42]} d6 {[%emt 0:01:45]} 8. h3 {[%emt 0:01:44]} gxh3 {[%emt 0:02:24]} 9. Bxh3 {[%emt 0:01:24]} Nf6 {[%emt 0:00:43]} 10. c4 {[%emt 0:04:39]} exd5 {[%emt 0:05:26]} 11. Bxc8 {[%emt 0:02:35]} Qxc8 {[%emt 0:00:05]} 12. Nxd5 {[%emt 0:00:31]} Nxd5 {[%emt 0:00:12]} 13. Qxd5 {[%emt 0:00:45]} Nc6 {[%emt 0:00:44]} 14. Bg5 {[%emt 0:20:13]} Qe6 {[%emt 0:08:18]} 15. Qxe6 {[%emt 0:03:33]} fxe6 {[%emt 0:07:18]} 16. Bxe7 {[%emt 0:00:28]} Kxe7 {[%emt 0:00:11]} 17. Nc3 {[%emt 0:07:12]} Raf8 {[%emt 0:00:20]} 18. f3 {[%emt 0:03:00]} a6 {[%emt 0:04:17]} 19. Kf2 {[%emt 0:05:01]} Ne5 {[%emt 0:03:32]} 20. b3 {[%emt 0:01:08]} Ng4+ {[%emt 0:00:46]} 21. Kg2 {[%emt 0:00:14]} Ne3+ {[%emt 0:00:24]} 22. Kf2 {[%emt 0:00:08]} Ng4+ {[%emt 0:00:31]} 23. Kg2 {[%emt 0:00:03]} Ne3+ {[%emt 0:00:41]} 1/2-1/2

[Event "Cracovia Festival-A 2023"]
[Site "Krakow"]
[Date "2023.12.31"]
[Round "5.14"]
[White "Pacan-Milej, Kosma"]
[Black "Ongut, Tamas Gunes"]
[Result "1-0"]
[ECO "D35"]
[WhiteElo "2425"]
[BlackElo "2313"]
[Annotator "RC"]
[PlyCount "67"]
[EventDate "2023.12.24"]
[EventType "swiss"]
[EventCountry "POL"]
[SourceTitle "playchess.com"]
[Source "ChessBase"]
[SourceQuality "1"]
[TimeControl "40/5400+30:1800+30"]

1. d4 {[%emt 0:00:01]} Nf6 {[%emt 0:07:54]} 2. c4 {[%emt 0:00:03]} e6 {[%emt 0:00:10]} 3. Nc3 {[%emt 0:00:07]} d5 {[%emt 0:00:07]} 4. cxd5 {[%emt 0:00:24]} exd5 {[%emt 0:00:10]} 5. Bg5 {[%emt 0:00:04]} Bb4 {[%emt 0:01:10]} 6. e3 {[%emt 0:00:28]} h6 {[%emt 0:00:09]} 7. Bxf6 {[%emt 0:05:28]} Qxf6 {[%emt 0:00:10]} 8. Qb3 {[%emt 0:00:02]} Qd6 {[%emt 0:01:43]} 9. a3 {[%emt 0:01:30]} Bxc3+ {[%emt 0:00:16]} 10. bxc3 {[%emt 0:00:03]} Nd7 {[%emt 0:04:38]} 11. Bd3 {[%emt 0:01:25]} O-O {[%emt 0:14:43]} 12. Nf3 {[%emt 0:00:45]} c5 {[%emt 0:07:34]} 13. Qb2 {[%emt 0:00:27]} Rb8 {[%emt 0:19:38]} 14. a4 {[%emt 0:03:39]} c4 {[%emt 0:08:40]} 15. Bc2 {[%emt 0:03:15]} b5 {[%emt 0:08:19]} 16. axb5 {[%emt 0:00:31]} a6 {[%emt 0:00:07]} 17. Ra5 {[%emt 0:02:31]} Rb6 {[%emt 0:02:09]} 18. O-O {[%emt 0:09:53]} Nb8 {[%emt 0:00:07]} 19. Ne5 {[%emt 0:10:20]} f6 {[%emt 0:00:14]} 20. Ng6 {[%emt 0:00:14]} Re8 {[%emt 0:00:47]} 21. Nf4 {[%emt 0:03:20]} Nc6 {[%emt 0:01:48]} 22. Raa1 {[%emt 0:05:28]} axb5 {[%emt 0:00:10]} 23. Bg6 {[%emt 0:00:10]} Rd8 {[%emt 0:00:53]} 24. Qe2 {[%emt 0:02:30]} Ne7 {[%emt 0:01:36]} 25. Bc2 {[%emt 0:07:03]} b4 {[%emt 0:04:21]} 26. cxb4 {[%emt 0:00:33]} Rxb4 {[%emt 0:00:09]} 27. Qh5 {[%emt 0:02:12]} Rb2 {[%emt 0:01:49]} 28. Bd1 {[%emt 0:05:14]} Bf5 {[%emt 0:05:21]} 29. Ra7 {[%emt 0:02:35]} Be4 {[%emt 0:04:53]} 30. Ba4 {[%emt 0:08:04]} Rb1 {[%emt 0:01:42]} 31. Rxb1 {[%emt 0:01:35]} Bxb1 {[%emt 0:00:07]} 32. Be8 {[%emt 0:00:47]} Kh7 {[%emt 0:03:38]} 33. Qf7 {[%emt 0:02:09]} Nf5 {[%emt 0:00:11]} 34. Nh5 {[%emt 0:01:21]} 1-0

[Event "Cracovia Festival-A 2023"]
[Site "Krakow"]
[Date "2023.12.31"]
[Round "5.15"]
[White "Cukrowski, Filip"]
[Black "Janeczko, Jakub"]
[Result "1/2-1/2"]
[ECO "A43"]
[WhiteElo "2402"]
[BlackElo "2283"]
[Annotator "RC"]
[PlyCount "82"]
[EventDate "2023.12.24"]
[EventType "swiss"]
[EventCountry "POL"]
[SourceTitle "playchess.com"]
[Source "ChessBase"]
[SourceQuality "1"]
[TimeControl "40/5400+30:1800+30"]

1. d4 {[%emt 0:07:41]} Nf6 {[%emt 0:00:06]} 2. Nf3 {[%emt 0:00:07]} c5 {[%emt 0:00:04]} 3. d5 {[%emt 0:00:07]} b5 {[%emt 0:00:04]} 4. Bg5 {[%emt 0:00:12]} g6 {[%emt 0:00:06]} 5. Bxf6 {[%emt 0:06:35]} exf6 {[%emt 0:00:05]} 6. e4 {[%emt 0:00:09]} b4 {[%emt 0:00:04]} 7. Nbd2 {[%emt 0:08:24]} Bg7 {[%emt 0:04:43]} 8. Bd3 {[%emt 0:05:49]} O-O {[%emt 0:00:22]} 9. O-O {[%emt 0:03:16]} d6 {[%emt 0:00:04]} 10. Nc4 {[%emt 0:07:37]} Qc7 {[%emt 0:00:02]} 11. Nfd2 {[%emt 0:01:47]} Nd7 {[%emt 0:03:41]} 12. f4 {[%emt 0:03:37]} a5 {[%emt 0:07:06]} 13. Qf3 {[%emt 0:02:16]} Ba6 {[%emt 0:12:59]} 14. Rae1 {[%emt 0:04:09]} Rfe8 {[%emt 0:17:34]} 15. Qg3 {[%emt 0:04:02]} Bxc4 {[%emt 0:05:47]} 16. Bxc4 {[%emt 0:00:47]} f5 {[%emt 0:02:36]} 17. exf5 {[%emt 0:00:40]} Rxe1 {[%emt 0:02:24]} 18. Rxe1 {[%emt 0:00:59]} Bxb2 {[%emt 0:01:03]} 19. fxg6 {[%emt 0:01:11]} hxg6 {[%emt 0:00:04]} 20. Bb5 {[%emt 0:08:04]} Nf6 {[%emt 0:05:05]} 21. Bc6 {[%emt 0:00:18]} Rf8 {[%emt 0:00:41]} 22. Nc4 {[%emt 0:02:58]} Bc3 {[%emt 0:04:07]} 23. Re2 {[%emt 0:00:18]} Nh5 {[%emt 0:05:20]} 24. Qf3 {[%emt 0:01:55]} Qd8 {[%emt 0:00:51]} 25. g4 {[%emt 0:02:13]} Ng7 {[%emt 0:00:11]} 26. Kg2 {[%emt 0:00:46]} Qf6 {[%emt 0:01:54]} 27. h3 {[%emt 0:05:23]} a4 {[%emt 0:01:35]} 28. Qe4 {[%emt 0:06:57]} a3 {[%emt 0:01:24]} 29. Bd7 {[%emt 0:07:20]} Rd8 {[%emt 0:10:11]} 30. Bc6 {[%emt 0:00:38]} Rf8 {[%emt 0:00:07]} 31. Kg3 {[%emt 0:01:36]} Rb8 {[%emt 0:05:00]} 32. Qd3 {[%emt 0:04:26]} Kf8 {[%emt 0:02:25]} 33. Kg2 {[%emt 0:01:10]} Kg8 {[%emt 0:01:37]} 34. Qe3 {[%emt 0:01:22]} Kf8 {[%emt 0:02:09]} 35. Qe4 {[%emt 0:01:15]} Qd8 {[%emt 0:01:31]} 36. Kg3 {[%emt 0:00:54]} Qf6 {[%emt 0:00:12]} 37. h4 {[%emt 0:00:38]} Kg8 {[%emt 0:01:00]} 38. Kh3 {[%emt 0:00:26]} Rf8 {[%emt 0:01:47]} 39. Qe3 {[%emt 0:00:43]} Bd4 {[%emt 0:01:42]} 40. Qe4 {[%emt 0:00:00]} Bc3 {[%emt 0:00:00]} 41. Kg3 {[%emt 0:09:25]} Rb8 {[%emt 0:03:54]} 1/2-1/2